[Event "Kadrioru MK Open A"]
[Site "Tallinn, Paul Keres Chess House, Estonia"]
[Date "2023.02.12"]
[Round "4.2"]
[White "Petrov, Dmitri"]
[Black "Akhvedliani, Irakli"]
[Result "0-1"]
[TimeControl "90 minutes with 30 second increment from move 1"]
[BlackTitle "FM"]
[WhiteElo "2246"]
[BlackElo "2420"]

1. e4 {

[%clk 01:30:56]

} {

[%emt 00:00:03]

} c5 {

[%clk 01:29:14]

} {

[%emt 00:01:47]

} 2. Nf3 {

[%clk 01:31:10]

} {

[%emt 00:00:16]

} Nc6 {

[%clk 01:29:38]

} {

[%emt 00:00:08]

} 3. Bb5 {

[%clk 01:29:54]

} {

[%emt 00:01:46]

} g6 {

[%clk 01:29:59]

} {

[%emt 00:00:09]

} 4. O-O {

[%clk 01:29:51]

} {

[%emt 00:00:32]

} Bg7 {

[%clk 01:30:15]

} {

[%emt 00:00:14]

} 5. Re1 {

[%clk 01:29:33]

} {

[%emt 00:00:47]

} e5 {

[%clk 01:30:29]

} {

[%emt 00:00:17]

} 6. d3 {

[%clk 01:17:17]

} {

[%emt 00:12:46]

} Nge7 {

[%clk 01:30:24]

} {

[%emt 00:00:35]

} 7. Be3 {

[%clk 01:16:45]

} {

[%emt 00:01:01]

} d6 {

[%clk 01:30:48]

} {

[%emt 00:00:06]

} 8. Qd2 {

[%clk 01:17:12]

} {

[%emt 00:00:03]

} Bg4 {

[%clk 01:27:58]

} {

[%emt 00:03:20]

} 9. c3 {

[%clk 01:16:23]

} {

[%emt 00:01:18]

} Bxf3 {

[%clk 01:10:22]

} {

[%emt 00:18:06]

} 10. gxf3 {

[%clk 01:16:48]

} {

[%emt 00:00:04]

} Qd7 {

[%clk 01:10:19]

} {

[%emt 00:00:34]

} 11. Bh6 {

[%clk 01:10:24]

} {

[%emt 00:06:52]

} O-O {

[%clk 01:07:04]

} {

[%emt 00:03:46]

} 12. Bxg7 {

[%clk 01:09:43]

} {

[%emt 00:01:12]

} Kxg7 {

[%clk 01:07:33]

} {

[%emt 00:00:02]

} 13. Qe3 {

[%clk 01:10:06]

} {

[%emt 00:00:06]

} f5 {

[%clk 00:56:59]

} {

[%emt 00:11:04]

} 14. Nd2 {

[%clk 01:10:27]

} {

[%emt 00:00:09]

} f4 {

[%clk 00:46:42]

} {

[%emt 00:10:48]

} 15. Qe2 {

[%clk 01:10:47]

} {

[%emt 00:00:09]

} g5 {

[%clk 00:44:17]

} {

[%emt 00:02:56]

} 16. Kh1 {

[%clk 01:10:55]

} {

[%emt 00:00:22]

} Rf6 {

[%clk 00:40:27]

} {

[%emt 00:04:19]

} 17. Rg1 {

[%clk 01:09:31]

} {

[%emt 00:01:53]

} Rg6 {

[%clk 00:40:53]

} {

[%emt 00:00:05]

} 18. Nb3 {

[%clk 01:04:18]

} {

[%emt 00:05:43]

} Qh3 {

[%clk 00:35:40]

} {

[%emt 00:05:43]

} 19. d4 {

[%clk 00:54:42]

} {

[%emt 00:10:05]

} cxd4 {

[%clk 00:35:42]

} {

[%emt 00:00:28]

} 20. cxd4 {

[%clk 00:55:08]

} {

[%emt 00:00:04]

} Kh8 {

[%clk 00:35:55]

} {

[%emt 00:00:17]

} 21. Qd1 {

[%clk 00:52:10]

} {

[%emt 00:03:28]

} Rh6 {

[%clk 00:32:41]

} {

[%emt 00:03:44]

} 22. Rg2 {

[%clk 00:52:27]

} {

[%emt 00:00:12]

} g4 {

[%clk 00:31:21]

} {

[%emt 00:01:51]

} 23. Be2 {

[%clk 00:52:45]

} {

[%emt 00:00:12]

} Ng6 {

[%clk 00:30:24]

} {

[%emt 00:01:27]

} 24. fxg4 {

[%clk 00:52:50]

} {

[%emt 00:00:25]

} f3 {

[%clk 00:28:21]

} {

[%emt 00:02:33]

} 25. Bxf3 {

[%clk 00:52:50]

} {

[%emt 00:00:30]

} Nf4 {

[%clk 00:28:15]

} {

[%emt 00:00:36]

} 26. Kg1 {

[%clk 00:51:08]

} {

[%emt 00:02:11]

} Nxg2 {

[%clk 00:28:25]

} {

[%emt 00:00:21]

} 27. Bxg2 {

[%clk 00:51:34]

} {

[%emt 00:00:04]

} Qxh2+ {

[%clk 00:28:53]

} {

[%emt 00:00:03]

} 28. Kf1 {

[%clk 00:51:58]

} {

[%emt 00:00:05]

} Rf8 {

[%clk 00:28:12]

} {

[%emt 00:01:11]

} 29. Qe2 {

[%clk 00:47:40]

} {

[%emt 00:04:49]

} Rhf6 {

[%clk 00:23:42]

} {

[%emt 00:05:00]

} 30. f3 {

[%clk 00:44:59]

} {

[%emt 00:03:11]

} Qg3 {

[%clk 00:23:13]

} {

[%emt 00:00:58]

} 0-1

[Event "Kadrioru MK Open A"]
[Site "Tallinn, Paul Keres Chess House, Estonia"]
[Date "2023.02.12"]
[Round "4.3"]
[White "Sinitsina, Anastassia"]
[Black "Jezov, Roman"]
[Result "1/2-1/2"]
[TimeControl "90 minutes with 30 second increment from move 1"]
[WhiteTitle "WFM"]
[BlackTitle "FM"]
[WhiteElo "2174"]
[BlackElo "2262"]

1. e4 {

[%clk 01:30:59]

} c5 {

[%clk 01:30:13]

} {

[%emt 00:00:47]

} 2. Nc3 {

[%clk 01:31:09]

} {

[%emt 00:00:19]

} Nc6 {

[%clk 01:30:14]

} {

[%emt 00:00:29]

} 3. Bb5 {

[%clk 01:31:31]

} {

[%emt 00:00:09]

} g6 {

[%clk 01:30:16]

} {

[%emt 00:00:28]

} 4. Bxc6 {

[%clk 01:31:40]

} {

[%emt 00:00:21]

} dxc6 {

[%clk 01:30:20]

} {

[%emt 00:00:26]

} 5. f4 {

[%clk 01:31:43]

} {

[%emt 00:00:27]

} Bg7 {

[%clk 01:28:58]

} {

[%emt 00:01:51]

} 6. Nf3 {

[%clk 01:31:45]

} {

[%emt 00:00:28]

} Nf6 {

[%clk 01:28:47]

} {

[%emt 00:00:41]

} 7. d3 {

[%clk 01:31:40]

} {

[%emt 00:00:35]

} O-O {

[%clk 01:28:28]

} {

[%emt 00:00:49]

} 8. O-O {

[%clk 01:29:58]

} {

[%emt 00:02:13]

} Ne8 {

[%clk 01:25:36]

} {

[%emt 00:03:22]

} 9. Be3 {

[%clk 01:29:25]

} {

[%emt 00:01:02]

} b6 {

[%clk 01:26:01]

} {

[%emt 00:00:05]

} 10. Qe1 {

[%clk 01:28:25]

} {

[%emt 00:01:30]

} Nc7 {

[%clk 01:23:53]

} {

[%emt 00:02:38]

} 11. Qh4 {

[%clk 01:26:38]

} {

[%emt 00:02:17]

} f5 {

[%clk 01:19:57]

} {

[%emt 00:04:26]

} 12. Kh1 {

[%clk 01:21:28]

} {

[%emt 00:05:40]

} Ne6 {

[%clk 01:18:48]

} {

[%emt 00:01:39]

} 13. Ng5 {

[%clk 01:20:43]

} {

[%emt 00:01:15]

} Nxg5 {

[%clk 01:17:12]

} {

[%emt 00:02:06]

} 14. Qxg5 {

[%clk 01:21:07]

} {

[%emt 00:00:06]

} e5 {

[%clk 01:03:58]

} {

[%emt 00:13:44]

} 15. Qg3 {

[%clk 01:20:32]

} {

[%emt 00:01:06]

} fxe4 {

[%clk 01:02:30]

} {

[%emt 00:01:58]

} 16. Nxe4 {

[%clk 01:19:17]

} {

[%emt 00:01:45]

} Bf5 {

[%clk 00:59:29]

} {

[%emt 00:03:31]

} 17. Nc3 {

[%clk 01:15:07]

} {

[%emt 00:04:40]

} exf4 {

[%clk 00:51:06]

} {

[%emt 00:08:53]

} 1/2-1/2

[Event "Kadrioru MK Open A"]
[Site "Tallinn, Paul Keres Chess House, Estonia"]
[Date "2023.02.12"]
[Round "4.4"]
[White "Pedoson, Georg Aleksander"]
[Black "Zalitis, Arturs-Aleksis"]
[Result "1-0"]
[TimeControl "90 minutes with 30 second increment from move 1"]
[WhiteElo "2253"]
[BlackElo "1908"]

1. d4 {

[%clk 01:30:57]

} {

[%emt 00:00:02]

} Nf6 {

[%clk 01:30:53]

} {

[%emt 00:00:07]

} 2. c4 {

[%clk 01:31:21]

} {

[%emt 00:00:06]

} g6 {

[%clk 01:31:19]

} {

[%emt 00:00:05]

} 3. Nc3 {

[%clk 01:31:34]

} {

[%emt 00:00:18]

} d5 {

[%clk 01:31:43]

} {

[%emt 00:00:06]

} 4. cxd5 {

[%clk 01:29:06]

} {

[%emt 00:02:58]

} Nxd5 {

[%clk 01:32:06]

} {

[%emt 00:00:06]

} 5. Bd2 {

[%clk 01:29:33]

} {

[%emt 00:00:04]

} Bg7 {

[%clk 01:31:41]

} {

[%emt 00:00:54]

} 6. e4 {

[%clk 01:29:57]

} {

[%emt 00:00:06]

} Nxc3 {

[%clk 01:31:54]

} {

[%emt 00:00:17]

} 7. Bxc3 {

[%clk 01:30:24]

} {

[%emt 00:00:03]

} c5 {

[%clk 01:31:50]

} {

[%emt 00:00:34]

} 8. d5 {

[%clk 01:25:31]

} {

[%emt 00:05:23]

} Bxc3+ {

[%clk 01:31:58]

} {

[%emt 00:00:21]

} 9. bxc3 {

[%clk 01:25:55]

} {

[%emt 00:00:06]

} O-O {

[%clk 01:27:09]

} {

[%emt 00:05:19]

} 10. Bc4 {

[%clk 01:23:25]

} {

[%emt 00:03:01]

} e6 {

[%clk 01:20:54]

} {

[%emt 00:06:45]

} 11. Ne2 {

[%clk 01:18:47]

} {

[%emt 00:05:08]

} exd5 {

[%clk 01:15:23]

} {

[%emt 00:06:00]

} 12. Bxd5 {

[%clk 01:19:09]

} {

[%emt 00:00:08]

} Nd7 {

[%clk 01:14:10]

} {

[%emt 00:01:44]

} 13. O-O {

[%clk 01:19:02]

} {

[%emt 00:00:37]

} Rb8 {

[%clk 01:13:36]

} {

[%emt 00:01:04]

} 14. a4 {

[%clk 01:17:24]

} {

[%emt 00:02:08]

} b6 {

[%clk 01:10:39]

} {

[%emt 00:03:27]

} 15. c4 {

[%clk 01:17:37]

} {

[%emt 00:00:17]

} Qe7 {

[%clk 01:07:58]

} {

[%emt 00:03:10]

} 16. Nc3 {

[%clk 01:12:28]

} {

[%emt 00:05:39]

} Nf6 {

[%clk 01:06:36]

} {

[%emt 00:01:52]

} 17. f4 {

[%clk 01:10:12]

} {

[%emt 00:02:46]

} Bd7 {

[%clk 01:04:21]

} {

[%emt 00:02:45]

} 18. e5 {

[%clk 01:09:48]

} {

[%emt 00:00:55]

} Ne8 {

[%clk 01:04:31]

} {

[%emt 00:00:19]

} 19. Qf3 {

[%clk 01:08:28]

} {

[%emt 00:01:49]

} a6 {

[%clk 01:00:58]

} {

[%emt 00:04:03]

} 20. g4 {

[%clk 01:06:40]

} {

[%emt 00:02:19]

} Qh4 {

[%clk 00:57:28]

} {

[%emt 00:03:59]

} 21. h3 {

[%clk 01:05:19]

} {

[%emt 00:01:51]

} Ng7 {

[%clk 00:45:24]

} {

[%emt 00:12:33]

} 22. Ne4 {

[%clk 01:01:01]

} {

[%emt 00:04:49]

} Bc8 {

[%clk 00:45:40]

} {

[%emt 00:00:13]

} 23. Ra2 {

[%clk 00:59:57]

} {

[%emt 00:01:34]

} Ne6 {

[%clk 00:42:31]

} {

[%emt 00:03:39]

} 24. Rg2 {

[%clk 00:58:54]

} {

[%emt 00:01:33]

} Nd4 {

[%clk 00:40:38]

} {

[%emt 00:02:23]

} 25. Qe3 {

[%clk 00:59:18]

} {

[%emt 00:00:07]

} Kh8 {

[%clk 00:35:21]

} {

[%emt 00:05:47]

} 26. a5 {

[%clk 00:58:12]

} {

[%emt 00:01:36]

} Qd8 {

[%clk 00:32:29]

} {

[%emt 00:03:21]

} 27. f5 {

[%clk 00:57:54]

} {

[%emt 00:00:48]

} gxf5 {

[%clk 00:27:24]

} {

[%emt 00:05:36]

} 28. Nf6 {

[%clk 00:57:58]

} {

[%emt 00:00:26]

} 1-0

[Event "Kadrioru MK Open A"]
[Site "Tallinn, Paul Keres Chess House, Estonia"]
[Date "2023.02.12"]
[Round "4.5"]
[White "Rychagov, Nikita"]
[Black "Mogilny, Evgeny"]
[Result "1-0"]
[TimeControl "90 minutes with 30 second increment from move 1"]
[WhiteElo "2192"]
[BlackElo "1756"]

1. e4 {

[%clk 01:28:39]

} {

[%emt 00:02:14]

} e5 {

[%clk 01:30:49]

} {

[%emt 00:00:18]

} 2. Nf3 {

[%clk 01:28:41]

} {

[%emt 00:00:28]

} Nc6 {

[%clk 01:31:09]

} {

[%emt 00:00:09]

} 3. d4 {

[%clk 01:29:07]

} {

[%emt 00:00:04]

} d6 {

[%clk 01:31:27]

} {

[%emt 00:00:12]

} 4. d5 {

[%clk 01:29:30]

} {

[%emt 00:00:07]

} Nce7 {

[%clk 01:31:41]

} {

[%emt 00:00:15]

} 5. c4 {

[%clk 01:29:51]

} {

[%emt 00:00:10]

} b6 {

[%clk 01:32:05]

} {

[%emt 00:00:05]

} 6. Nc3 {

[%clk 01:30:04]

} {

[%emt 00:00:18]

} f5 {

[%clk 01:32:11]

} {

[%emt 00:00:24]

} 7. c5 {

[%clk 01:27:38]

} {

[%emt 00:02:56]

} bxc5 {

[%clk 01:31:55]

} {

[%emt 00:00:45]

} 8. Bb5+ {

[%clk 01:27:27]

} {

[%emt 00:00:42]

} Bd7 {

[%clk 01:32:13]

} {

[%emt 00:00:12]

} 9. Ng5 {

[%clk 01:27:11]

} {

[%emt 00:00:46]

} Bxb5 {

[%clk 01:32:23]

} {

[%emt 00:00:20]

} 10. Ne6 {

[%clk 01:26:30]

} {

[%emt 00:01:11]

} Qd7 {

[%clk 01:32:09]

} {

[%emt 00:00:44]

} 11. Nxb5 {

[%clk 01:26:49]

} {

[%emt 00:00:11]

} Rc8 {

[%clk 01:32:38]

} 12. Nxa7 {

[%clk 01:25:02]

} {

[%emt 00:02:17]

} Rb8 {

[%clk 01:33:02]

} {

[%emt 00:00:06]

} 13. a4 {

[%clk 01:22:41]

} {

[%emt 00:02:52]

} Nf6 {

[%clk 01:33:24]

} {

[%emt 00:00:08]

} 14. Nb5 {

[%clk 01:22:42]

} {

[%emt 00:00:29]

} Rb7 {

[%clk 01:33:36]

} {

[%emt 00:00:18]

} 15. f3 {

[%clk 01:18:35]

} {

[%emt 00:04:37]

} Kf7 {

[%clk 01:29:54]

} {

[%emt 00:04:11]

} 16. O-O {

[%clk 01:18:42]

} {

[%emt 00:00:24]

} f4 {

[%clk 01:29:56]

} {

[%emt 00:00:28]

} 17. g3 {

[%clk 01:18:16]

} {

[%emt 00:00:55]

} fxg3 {

[%clk 01:30:15]

} {

[%emt 00:00:10]

} 18. hxg3 {

[%clk 01:18:43]

} {

[%emt 00:00:04]

} Kg8 {

[%clk 01:28:43]

} {

[%emt 00:02:02]

} 19. Bg5 {

[%clk 01:18:43]

} {

[%emt 00:00:30]

} Ng6 {

[%clk 01:28:59]

} {

[%emt 00:00:15]

} 20. b3 {

[%clk 01:17:47]

} {

[%emt 00:01:26]

} Be7 {

[%clk 01:29:16]

} {

[%emt 00:00:12]

} 21. Ra2 {

[%clk 01:18:03]

} {

[%emt 00:00:15]

} h6 {

[%clk 01:29:10]

} {

[%emt 00:00:37]

} 22. Be3 {

[%clk 01:16:40]

} {

[%emt 00:01:52]

} Nf8 {

[%clk 01:29:26]

} {

[%emt 00:00:14]

} 23. Nxf8 {

[%clk 01:13:09]

} {

[%emt 00:04:01]

} Bxf8 {

[%emt 00:00:37]

} 24. Nc3 {

[%emt 00:00:33]

} g5 {

[%clk 01:28:34]

} {

[%emt 00:00:11]

} 25. a5 {

[%clk 01:13:17]

} {

[%emt 00:00:22]

} Be7 {

[%clk 01:28:32]

} {

[%emt 00:00:32]

} 26. a6 {

[%clk 01:13:41]

} {

[%emt 00:00:06]

} Ra7 {

[%clk 01:29:01]

} 27. Qd3 {

[%clk 01:13:48]

} {

[%emt 00:00:23]

} Kg7 {

[%clk 01:29:20]

} {

[%emt 00:00:10]

} 28. b4 {

[%clk 01:14:02]

} {

[%emt 00:00:16]

} Qh3 {

[%clk 01:29:07]

} {

[%emt 00:00:42]

} 29. Rg2 {

[%clk 01:13:52]

} {

[%emt 00:00:40]

} Qd7 {

[%clk 01:29:26]

} {

[%emt 00:00:11]

} 30. Ra1 {

[%clk 01:09:57]

} {

[%emt 00:04:25]

} Rha8 {

[%clk 01:29:43]

} {

[%emt 00:00:13]

} 31. Qc4 {

[%clk 01:08:13]

} {

[%emt 00:02:14]

} c6 {

[%clk 01:29:17]

} {

[%emt 00:00:56]

} 32. dxc6 {

[%clk 01:08:20]

} {

[%emt 00:00:23]

} Qxc6 {

[%clk 01:29:46]

} {

[%emt 00:00:01]

} 33. b5 {

[%clk 01:08:44]

} {

[%emt 00:00:06]

} Qc8 {

[%clk 01:28:53]

} {

[%emt 00:01:22]

} 34. Rd1 {

[%clk 00:55:01]

} {

[%emt 00:14:13]

} Rd7 {

[%clk 01:27:46]

} {

[%emt 00:01:37]

} 35. Ra2 {

[%clk 00:54:56]

} {

[%emt 00:00:35]

} Bd8 {

[%clk 01:27:58]

} {

[%emt 00:00:18]

} 36. Qe6 {

[%clk 00:54:51]

} {

[%emt 00:00:36]

} Be7 {

[%clk 01:25:46]

} {

[%emt 00:02:41]

} 37. f4 {

[%clk 00:53:36]

} {

[%emt 00:01:44]

} exf4 {

[%clk 01:25:53]

} {

[%emt 00:00:23]

} 38. gxf4 {

[%clk 00:54:02]

} {

[%emt 00:00:05]

} Nh7 {

[%clk 01:23:59]

} {

[%emt 00:02:24]

} 39. Nd5 {

[%clk 00:51:03]

} {

[%emt 00:03:29]

} Rda7 {

[%clk 01:23:48]

} {

[%emt 00:00:40]

} 40. Qxc8 {

[%clk 00:51:04]

} {

[%emt 00:00:29]

} Rxc8 {

[%clk 01:23:47]

} {

[%emt 00:00:32]

} 41. b6 {

[%clk 00:51:29]

} {

[%emt 00:00:05]

} Rd7 {

[%clk 01:23:00]

} {

[%emt 00:01:17]

} 42. b7 {

[%clk 00:51:53]

} {

[%emt 00:00:06]

} Rb8 {

[%clk 01:23:22]

} {

[%emt 00:00:08]

} 43. a7 {

[%clk 00:52:17]

} {

[%emt 00:00:05]

} Rdxb7 {

[%clk 01:23:44]

} {

[%emt 00:00:07]

} 44. axb8=Q {

[%clk 00:52:34]

} {

[%emt 00:00:13]

} Rxb8 {

[%clk 01:24:13]

} {

[%emt 00:00:02]

} 45. Nxe7 {

[%clk 00:52:52]

} {

[%emt 00:00:12]

} Nf6 {

[%clk 01:24:13]

} {

[%emt 00:00:31]

} 46. fxg5 {

[%clk 00:53:12]

} {

[%emt 00:00:11]

} Nxe4 {

[%clk 01:24:41]

} {

[%emt 00:00:01]

} 47. gxh6+ {

[%clk 00:53:24]

} {

[%emt 00:00:18]

} Kf7 {

[%clk 01:24:46]

} {

[%emt 00:00:25]

} 48. Nf5 {

[%clk 00:53:45]

} {

[%emt 00:00:09]

} Ke6 {

[%clk 01:25:05]

} {

[%emt 00:00:11]

} 49. Ng7+ {

[%clk 00:53:30]

} {

[%emt 00:00:45]

} Ke5 {

[%clk 01:25:16]

} {

[%emt 00:00:19]

} 50. Rf1 {

[%clk 00:53:41]

} {

[%emt 00:00:19]

} Kd5 {

[%clk 01:23:08]

} {

[%emt 00:02:37]

} 51. Nf5 {

[%clk 00:53:42]

} {

[%emt 00:00:29]

} Ke5 {

[%clk 01:22:56]

} {

[%emt 00:00:43]

} 52. h7 {

[%clk 00:53:44]

} {

[%emt 00:00:27]

} Rh8 {

[%clk 01:23:24]

} 53. Ra7 {

[%clk 00:53:45]

} {

[%emt 00:00:30]

} d5 {

[%clk 01:23:20]

} {

[%emt 00:00:34]

} 54. Nh4 {

[%clk 00:54:05]

} {

[%emt 00:00:09]

} Rd8 {

[%clk 01:22:47]

} {

[%emt 00:01:03]

} 55. Ng6+ {

[%clk 00:54:25]

} {

[%emt 00:00:10]

} Ke6 {

[%clk 01:23:05]

} {

[%emt 00:00:13]

} 56. Rf8 {

[%clk 00:54:42]

} {

[%emt 00:00:12]

} 1-0

[Event "Kadrioru MK Open A"]
[Site "Tallinn, Paul Keres Chess House, Estonia"]
[Date "2023.02.12"]
[Round "5.1"]
[White "Andrijashkin, Deniss"]
[Black "Akhvedliani, Irakli"]
[Result "0-1"]
[TimeControl "90 minutes with 30 second increment from move 1"]
[BlackTitle "FM"]
[WhiteElo "2132"]
[BlackElo "2420"]

1. c4 {

[%clk 01:28:56]

} {

[%emt 00:02:04]

} Nf6 {

[%clk 01:29:15]

} {

[%emt 00:01:46]

} 2. g3 {

[%clk 01:29:12]

} {

[%emt 00:00:14]

} g6 {

[%clk 01:29:35]

} {

[%emt 00:00:10]

} 3. Bg2 {

[%clk 01:29:26]

} {

[%emt 00:00:15]

} Bg7 {

[%clk 01:30:01]

} {

[%emt 00:00:04]

} 4. Nc3 {

[%clk 01:29:39]

} {

[%emt 00:00:17]

} O-O {

[%clk 01:30:22]

} {

[%emt 00:00:09]

} 5. d4 {

[%clk 01:29:18]

} {

[%emt 00:00:52]

} d6 {

[%clk 01:30:47]

} {

[%emt 00:00:05]

} 6. e4 {

[%clk 01:29:40]

} {

[%emt 00:00:08]

} Nc6 {

[%clk 01:25:54]

} {

[%emt 00:05:23]

} 7. Nge2 {

[%clk 01:29:49]

} {

[%emt 00:00:20]

} e5 {

[%clk 01:26:06]

} {

[%emt 00:00:19]

} 8. d5 {

[%clk 01:30:09]

} {

[%emt 00:00:10]

} Ne7 {

[%clk 01:24:32]

} {

[%emt 00:02:04]

} 9. O-O {

[%clk 01:30:03]

} {

[%emt 00:00:35]

} Nd7 {

[%clk 01:24:48]

} {

[%emt 00:00:15]

} 10. Rb1 {

[%clk 01:12:30]

} {

[%emt 00:18:03]

} f5 {

[%clk 01:24:23]

} {

[%emt 00:00:54]

} 11. f3 {

[%clk 01:10:18]

} {

[%emt 00:02:42]

} h6 {

[%clk 00:55:12]

} {

[%emt 00:29:41]

} 12. b4 {

[%clk 00:55:33]

} {

[%emt 00:15:15]

} f4 {

[%clk 00:55:24]

} {

[%emt 00:00:18]

} 13. gxf4 {

[%clk 00:48:58]

} {

[%emt 00:07:06]

} exf4 {

[%clk 00:55:45]

} {

[%emt 00:00:09]

} 14. Nxf4 {

[%clk 00:49:18]

} {

[%emt 00:00:09]

} Ne5 {

[%clk 00:40:28]

} {

[%emt 00:15:48]

} 15. Ne6 {

[%clk 00:32:23]

} {

[%emt 00:17:25]

} Bxe6 {

[%clk 00:40:53]

} {

[%emt 00:00:05]

} 16. dxe6 {

[%clk 00:32:51]

} {

[%emt 00:00:02]

} g5 {

[%clk 00:37:37]

} {

[%emt 00:03:46]

} 17. Nd5 {

[%clk 00:26:46]

} {

[%emt 00:06:35]

} Nxc4 {

[%clk 00:28:41]

} {

[%emt 00:09:26]

} 18. Bh3 {

[%clk 00:19:47]

} {

[%emt 00:07:29]

} c6 {

[%clk 00:26:55]

} {

[%emt 00:02:16]

} 19. Nxe7+ {

[%clk 00:18:01]

} {

[%emt 00:02:16]

} Qxe7 {

[%clk 00:27:23]

} {

[%emt 00:00:01]

} 20. Qe2 {

[%clk 00:16:02]

} {

[%emt 00:02:26]

} b5 {

[%clk 00:27:01]

} {

[%emt 00:00:55]

} 21. Bf5 {

[%clk 00:13:35]

} {

[%emt 00:02:56]

} d5 {

[%clk 00:14:21]

} {

[%emt 00:13:12]

} 22. f4 {

[%clk 00:05:14]

} {

[%emt 00:08:50]

} Nd6 {

[%clk 00:12:07]

} {

[%emt 00:02:45]

} 23. fxg5 {

[%clk 00:02:33]

} {

[%emt 00:03:11]

} dxe4 {

[%clk 00:12:00]

} {

[%emt 00:00:37]

} 24. Bxe4 {

[%clk 00:02:43]

} {

[%emt 00:00:19]

} Bd4+ {

[%clk 00:09:41]

} {

[%emt 00:02:50]

} 25. Kg2 {

[%clk 00:01:32]

} {

[%emt 00:01:41]

} Rxf1 {

[%clk 00:09:57]

} {

[%emt 00:00:15]

} 26. Kxf1 {

[%clk 00:01:25]

} {

[%emt 00:00:36]

} Rf8+ {

[%clk 00:10:25]

} {

[%emt 00:00:02]

} 27. Ke1 {

[%clk 00:00:33]

} {

[%emt 00:01:21]

} Bc3+ {

[%clk 00:06:56]

} {

[%emt 00:04:00]

} 28. Kd1 {

[%clk 00:00:38]

} {

[%emt 00:00:23]

} Qg7 {

[%clk 00:06:37]

} {

[%emt 00:00:52]

} 29. Qd3 {

[%clk 00:00:31]

} {

[%emt 00:00:37]

} Qe5 {

[%clk 00:05:28]

} {

[%emt 00:01:39]

} 30. Bh7+ {

[%clk 00:00:43]

} {

[%emt 00:00:16]

} Kh8 {

[%clk 00:05:51]

} {

[%emt 00:00:09]

} 31. Kc2 {

[%clk 00:00:32]

} {

[%emt 00:00:41]

} Rf2+ {

[%clk 00:05:42]

} {

[%emt 00:00:39]

} 32. Kb3 {

[%clk 00:00:49]

} {

[%emt 00:00:10]

} a5 {

[%clk 00:04:21]

} {

[%emt 00:01:54]

} 0-1